lending/lending_fUSD_20240112
["ID","MTS","AMOUNT","RATE_DAILY","PERIOD"]
[311331139,1705063889048,-1634.05,0.00023688,2]
[311331140,1705063889057,-500.0,0.00023688,2]
[311331141,1705063889067,-500.0,0.00023688,2]
[311331142,1705063889077,-500.0,0.00023688,2]
[311331143,1705063889087,-500.0,0.00023688,2]
[311331144,1705063889097,-709.97,0.00023688,2]
[311331145,1705063889107,-500.0,0.00023688,2]
[311331146,1705063889117,-835.12,0.00023688,2]
[311331147,1705063889128,-1018.72,0.00023688,2]
[311331148,1705063889138,-500.0,0.00023688,2]
[311331149,1705063889149,-262.06144597,0.00023688,2]
[311331150,1705063889159,-500.0,0.00023688,2]
[311331151,1705063889170,-500.0,0.00023688,2]
[311331152,1705063889180,-508.62114624,0.00023688,2]
[311331153,1705063889190,-500.0,0.00023688,2]
[311331154,1705063889200,-387.55973213,0.00023688,2]
[311331155,1705063889210,-1257.65,0.00023688,2]
[311331156,1705063889220,-1312.63,0.00023688,2]
[311331157,1705063889231,-518.56754555,0.00023688,2]
[311331158,1705063889242,-511.76,0.00023688,2]
[311331159,1705063889254,-500.0,0.00023688,2]
[311331160,1705063889264,-500.0,0.00023688,2]
[311331161,1705063889274,-500.0,0.00023688,2]
[311331162,1705063889284,-500.0,0.00023688,2]
[311331163,1705063889295,-500.0,0.00023688,2]
[311331164,1705063889305,-500.0,0.00023688,2]
[311331165,1705063889317,-500.0,0.00023688,2]
[311331166,1705063889328,-500.0,0.00023688,2]
[311331167,1705063889339,-500.0,0.00023688,2]
[311331168,1705063889350,-539.08,0.00023688,2]
[311331169,1705063889360,-500.0,0.00023688,2]
[311331170,1705063889372,-500.0,0.00023688,2]
[311331171,1705063889383,-1320.71,0.00023688,2]
[311331172,1705063889394,-500.0,0.00023688,2]
[311331173,1705063889405,-500.0,0.00023688,2]
[311331174,1705063889416,-969.0,0.00023688,2]
[311331175,1705063889426,-736.76,0.00023688,2]
[311331176,1705063889438,-500.0,0.00023688,2]
[311331177,1705063889449,-500.0,0.00023688,2]
[311331178,1705063889460,-500.0,0.00023688,2]
[311331179,1705063889471,-500.0,0.00023688,2]
[311331180,1705063889482,-500.0,0.00023688,2]
[311331181,1705063889494,-500.0,0.00023688,2]
[311331182,1705063889509,-1026.07,0.00023688,2]
[311331183,1705063889521,-913.29,0.00023688,2]
[311331184,1705063889532,-500.0,0.00023688,2]
[311331185,1705063889544,-500.0,0.00023688,2]
[311331186,1705063889554,-721.94,0.00023688,2]
[311331187,1705063889565,-3292.32224499,0.00023689,2]
[311331188,1705063889576,-150.01,0.00023689,2]
[311331189,1705063889587,-4639.19,0.00023689,2]
[311331190,1705063889598,-1394.83372266,0.0002369,2]
[311331191,1705063889608,-200.0,0.0002369,2]
[311331192,1705063889619,-331.24506134,0.0002369,2]
[311331193,1705063889630,-500.0,0.0002369,2]
[311331194,1705063889640,-500.0,0.0002369,2]
[311331195,1705063889650,-211.79,0.00023702,2]
[311331196,1705063889661,-191.59750759,0.00023725,2]
[311331197,1705063889671,-542.9,0.00023735,2]
[311331198,1705063889682,-162.87,0.00023758,2]
[311331199,1705063889692,-500.0,0.00023762,2]
[311331200,1705063889703,-162.16,0.00023764,2]
[311331201,1705063889714,-4569.8908539,0.00023767,2]
[311331202,1705063889725,-150.67,0.00023771,2]
[311331203,1705063889736,-500.0,0.00023782,2]
[311331204,1705063889750,-228.37,0.00023786,2]
[311331205,1705063889761,-161.39,0.00023812,2]
[311331206,1705063889771,-211.79,0.00023816,2]
[311331207,1705063889783,-300.0,0.00023853,2]
[311331208,1705063889793,-4223.75,0.00023895,2]
[311331209,1705063889804,-500.0,0.00023895,2]
[311331210,1705063889814,-1122.89,0.00023895,2]
[311331211,1705063889825,-945.58,0.00023895,2]
[311331212,1705063889835,-620.52,0.00023895,2]
[311331213,1705063889846,-703.0,0.00023895,2]
[311331214,1705063889857,-1331.16,0.00023895,2]
[311331215,1705063889868,-3318.66,0.00023895,2]
[311331216,1705063889878,-228.37,0.000239,2]
[311331217,1705063889889,-731.2273695,0.00023916,2]
[311331218,1705063889899,-200.0,0.00023927,2]
[311331219,1705063889908,-211.79,0.00023931,2]
[311331220,1705063889919,-168.7,0.00023946,2]
[311331221,1705063889930,-200.0,0.00023956,2]
[311331222,1705063889940,-500.0,0.00023961,2]
[311331223,1705063889951,-500.0,0.00023961,2]
[311331224,1705063889962,-500.0,0.00023961,2]
[311331225,1705063889973,-500.0,0.00023961,2]
[311331226,1705063889984,-500.0,0.00023961,2]
[311331227,1705063889999,-514.6540004,0.00023961,2]
[311331228,1705063890010,-500.0,0.00023961,2]
[311331229,1705063890020,-613.25851567,0.00023961,2]
[311331230,1705063890031,-500.0,0.00023961,2]
[311331231,1705063890042,-500.0,0.00023961,2]
[311331232,1705063890053,-500.0,0.00023961,2]
[311331233,1705063890063,-500.0,0.00023961,2]
[311331234,1705063890074,-500.0,0.00023961,2]
[311331235,1705063890085,-500.0,0.00023961,2]
[311331236,1705063890096,-1074.41,0.00023961,2]
[311331237,1705063890107,-500.0,0.00023961,2]
[311331238,1705063890117,-500.0,0.00023961,2]
[311331239,1705063890128,-500.0,0.00023961,2]
[311331240,1705063890139,-4313.59,0.00023961,5]
[311331241,1705063890150,-263.97931541,0.00023961,2]
[311331242,1705063890162,-500.0,0.00023961,2]
[311331243,1705063890174,-2141.96,0.00023961,2]
[311331244,1705063890184,-763.76,0.00023961,2]
[311331245,1705063890195,-13400.37,0.00023961,2]
[311331246,1705063890206,-580.61265826,0.00023961,2]
[311331247,1705063890216,-4452.05,0.00023961,2]
[311331248,1705063890226,-500.0,0.00023961,2]
[311331249,1705063890237,-500.0,0.00023961,2]
[311331250,1705063890250,-500.0,0.00023961,2]
[311331251,1705063890260,-500.0,0.00023961,2]
[311331252,1705063890271,-5995.38,0.00023961,2]
[311331253,1705063890282,-500.0,0.00023961,2]
[311331254,1705063890293,-500.0,0.00023961,2]
[311331255,1705063890304,-966.26,0.00023961,2]
[311331256,1705063890315,-500.0,0.00023961,2]
[311331257,1705063890326,-500.0,0.00023961,2]
[311331258,1705063890337,-500.0,0.00023961,2]
[311331259,1705063890348,-500.0,0.00023961,2]
[311331260,1705063890358,-660.56,0.00023961,2]
[311331261,1705063890369,-500.0,0.00023961,2]
[311331262,1705063890379,-500.0,0.00023961,2]
[311331263,1705063890389,-402.62384671,0.00023961,2]
[311331264,1705063890400,-500.0,0.00023961,2]
[311331265,1705063890410,-568.04,0.00023961,2]
[311331266,1705063890421,-1008.99,0.00023961,2]
[311331267,1705063890432,-615.37,0.00023961,2]
[311331268,1705063890442,-500.0,0.00023961,2]
[311331269,1705063890452,-797.96,0.00023961,2]
[311331270,1705063890463,-500.0,0.00023961,2]
[311331271,1705063890473,-1371.29,0.00023961,2]
[311331272,1705063890483,-500.0,0.00023961,2]
[311331273,1705063890494,-686.32,0.00023961,2]
[311331274,1705063890506,-500.0,0.00023961,2]
[311331275,1705063890516,-500.0,0.00023961,2]
[311331276,1705063890526,-3981.87,0.00023961,2]
[311331277,1705063890537,-500.0,0.00023961,2]
[311331278,1705063890547,-584.53,0.00023961,2]
[311331279,1705063890558,-500.0,0.00023961,2]
[311331280,1705063890569,-610.53,0.00023961,2]
[311331281,1705063890579,-766.02,0.00023961,2]
[311331282,1705063890591,-500.0,0.00023961,2]
[311331283,1705063890803,-500.0,0.00023961,2]
[311331284,1705063890821,-621.74,0.00023961,2]
[311331285,1705063890842,-500.0,0.00023961,2]
[311331286,1705063890853,-2752.63,0.00023961,2]
[311331287,1705063890864,-500.0,0.00023961,2]
[311331288,1705063890875,-622.66205838,0.00023961,2]
[311331289,1705063890886,-1378.37,0.00023961,2]
[311331290,1705063890896,-500.0,0.00023961,2]
[311331291,1705063890906,-500.0,0.00023961,2]
[311331292,1705063890917,-922.86,0.00023961,2]
[311331293,1705063890927,-500.0,0.00023961,2]
[311331294,1705063890937,-500.0,0.00023961,2]
[311331295,1705063890947,-500.0,0.00023961,2]
[311331296,1705063890958,-712.79,0.00023961,2]
[311331297,1705063890968,-500.0,0.00023961,2]
[311331298,1705063890978,-624.87,0.00023961,2]
[311331299,1705063890989,-451.75867536,0.00023961,2]
[311331300,1705063891000,-811.47,0.00023961,2]
[311331301,1705063891010,-500.0,0.00023961,2]
[311331302,1705063891021,-500.0,0.00023961,2]
[311331303,1705063891031,-500.0,0.00023961,2]
[311331304,1705063891041,-500.0,0.00023961,2]
[311331305,1705063891050,-500.0,0.00023961,2]
[311331306,1705063891060,-6331.44,0.00023961,2]
[311331307,1705063891070,-995.86,0.00023961,2]
[311331308,1705063891080,-618.43966399,0.00023961,2]
[311331309,1705063891090,-652.82,0.00023961,2]
[311331310,1705063891101,-500.0,0.00023961,2]
[311331311,1705063891111,-6343.23,0.00023961,2]
[311331312,1705063891121,-1936.38,0.00023961,2]
[311331313,1705063891131,-500.0,0.00023961,2]
[311331314,1705063891142,-500.0,0.00023961,2]
[311331315,1705063891152,-538.63,0.00023961,2]
[311331316,1705063891163,-537.24594133,0.00023961,2]
[311331317,1705063891174,-500.0,0.00023961,2]
[311331318,1705063891184,-530.12,0.00023961,2]
[311331319,1705063891195,-905.93,0.00023961,2]
[311331320,1705063891206,-500.0,0.00023961,2]
[311331321,1705063891217,-500.0,0.00023961,2]
[311331322,1705063891228,-500.0,0.00023961,2]
[311331323,1705063891238,-345.93688808,0.00023961,2]
[311331324,1705063891250,-500.0,0.00023961,2]
[311331325,1705063891261,-1330.98,0.00023961,2]
[311331326,1705063891271,-584.23,0.00023961,2]
[311331327,1705063891282,-1834.87,0.00023961,2]
[311331328,1705063891292,-500.0,0.00023961,2]
[311331329,1705063891303,-2275.08,0.00023961,2]
[311331330,1705063891314,-3572.07,0.00023961,2]
[311331331,1705063891324,-558.34,0.00023961,2]
[311331332,1705063891335,-500.0,0.00023961,2]
[311331333,1705063891346,-1346.26,0.00023961,2]
[311331334,1705063891356,-227.44,0.00023961,2]
[311331335,1705063891366,-1688.4,0.00023961,2]
[311331336,1705063891377,-1004.34,0.00023961,2]
[311331337,1705063891387,-500.0,0.00023961,2]
[311331338,1705063891397,-500.0,0.00023961,2]
[311331339,1705063891408,-598.68,0.00023961,2]
[311331340,1705063891418,-929.29,0.00023961,2]
[311331341,1705063891427,-500.0,0.00023961,2]
[311331342,1705063891437,-1187.5,0.00023961,2]
[311331343,1705063891448,-500.0,0.00023961,2]
[311331344,1705063891458,-500.0,0.00023961,2]
[311331345,1705063891469,-937.32,0.00023961,2]
[311331346,1705063891479,-753.23,0.00023961,2]
[311331347,1705063891490,-507.51,0.00023961,2]
[311331348,1705063891503,-500.0,0.00023961,2]
[311331349,1705063891514,-500.0,0.00023962,2]
[311331350,1705063891524,-500.0,0.00023962,2]
[311331351,1705063891534,-500.0,0.00023962,2]
[311331352,1705063891544,-500.0,0.00023962,2]
[311331353,1705063891555,-391.29776191,0.00023962,2]
[311331354,1705063891566,-500.0,0.00023962,2]
[311331355,1705063891576,-500.0,0.00023962,2]
[311331356,1705063891587,-500.0,0.00023962,2]
[311331357,1705063891597,-500.0,0.00023962,2]
[311331358,1705063891607,-500.0,0.00023962,2]
[311331359,1705063891618,-500.0,0.00023962,2]
[311331360,1705063891628,-500.0,0.00023962,2]
[311331361,1705063891639,-288.47104747,0.00023962,2]
[311331362,1705063891649,-522.02,0.00023962,2]
[311331363,1705063891659,-500.0,0.00023962,2]
[311331364,1705063891670,-191.19316866,0.00023962,2]
[311331365,1705063891679,-509.32118302,0.00023962,2]
[311331366,1705063891690,-500.0,0.00023962,2]
[311331367,1705063891699,-500.0,0.00023962,2]
[311331368,1705063891710,-500.0,0.00023962,2]
[311331369,1705063891719,-520.02009477,0.00023962,2]
[311331370,1705063891730,-500.0,0.00023962,2]
[311331371,1705063891740,-500.0,0.00023962,2]
[311331372,1705063891751,-500.0,0.00023962,2]
[311331373,1705063891763,-583.46609172,0.00023962,2]
[311331374,1705063891776,-500.0,0.00023962,2]
[311331375,1705063891787,-500.0,0.00023962,2]
[311331376,1705063891798,-500.0,0.00023962,2]
[311331377,1705063891808,-500.0,0.00023962,2]
[311331378,1705063891819,-500.0,0.00023962,2]
[311331379,1705063891829,-500.0,0.00023962,2]
[311331380,1705063891840,-500.0,0.00023962,2]
[311331381,1705063891851,-500.0,0.00023962,2]
[311331382,1705063891862,-2353.43,0.00023962,2]
[311331383,1705063891872,-500.0,0.00023962,2]
[311331384,1705063891883,-500.0,0.00023962,2]
[311331385,1705063891893,-500.0,0.00023962,2]
[311331386,1705063891903,-500.0,0.00023962,2]
[311331387,1705063891913,-500.0,0.00023962,2]
[311331388,1705063891923,-500.0,0.00023962,2]
[311331389,1705063891933,-500.0,0.00023962,2]
[311331390,1705063891943,-500.0,0.00023962,2]
[311331391,1705063891953,-500.0,0.00023962,2]
[311331392,1705063891963,-500.0,0.00023962,2]
[311331393,1705063891974,-500.0,0.00023962,2]
[311331394,1705063891984,-500.0,0.00023962,2]
[311331395,1705063891994,-500.0,0.00023962,2]
[311331396,1705063892007,-500.0,0.00023962,2]
[311331397,1705063892017,-500.0,0.00023962,2]
[311331398,1705063892027,-500.0,0.00023962,2]
[311331399,1705063892037,-500.0,0.00023962,2]
[311331400,1705063892047,-500.0,0.00023962,2]
[311331401,1705063892058,-762.84,0.00023962,2]
[311331402,1705063892068,-500.0,0.00023962,2]
[311331403,1705063892079,-500.0,0.00023962,2]
[311331404,1705063892089,-759.51,0.00023962,2]
[311331405,1705063892100,-500.0,0.00023962,2]
[311331406,1705063892111,-500.0,0.00023962,2]
[311331407,1705063892122,-500.0,0.00023962,2]
[311331408,1705063892132,-500.0,0.00023962,2]
[311331409,1705063892143,-500.0,0.00023962,2]
[311331410,1705063892153,-500.0,0.00023962,2]
[311331411,1705063892167,-500.0,0.00023962,2]
[311331412,1705063892177,-500.0,0.00023962,2]
[311331413,1705063892186,-262.97290668,0.00023962,2]
[311331414,1705063892196,-500.0,0.00023962,2]
[311331415,1705063892206,-352.79899014,0.00023962,2]
[311331416,1705063892217,-500.0,0.00023962,2]
[311331417,1705063892227,-500.0,0.00023962,2]
[311331418,1705063892239,-500.0,0.00023962,2]
[311331419,1705063892252,-500.0,0.00023962,2]
[311331420,1705063892262,-500.0,0.00023962,2]
[311331421,1705063892272,-500.0,0.00023962,2]
[311331422,1705063892283,-500.0,0.00023962,2]
[311331423,1705063892293,-500.0,0.00023962,2]
[311331424,1705063892303,-500.0,0.00023962,2]
[311331425,1705063892313,-500.0,0.00023962,2]
[311331426,1705063892324,-500.0,0.00023962,2]
[311331427,1705063892335,-500.0,0.00023962,2]
[311331428,1705063892345,-500.0,0.00023962,2]
[311331429,1705063892355,-500.0,0.00023962,2]
[311331430,1705063892366,-500.0,0.00023962,2]
[311331431,1705063892376,-500.0,0.00023962,2]
[311331432,1705063892387,-465.56080758,0.00023962,2]
[311331433,1705063892397,-500.0,0.00023962,2]
[311331434,1705063892408,-500.0,0.00023962,2]
[311331435,1705063892419,-500.0,0.00023962,2]
[311331436,1705063892429,-500.0,0.00023962,2]
[311331437,1705063892439,-500.0,0.00023962,2]
[311331438,1705063892449,-500.0,0.00023962,2]
[311331439,1705063892459,-500.0,0.00023962,2]
[311331440,1705063892469,-500.0,0.00023962,2]
[311331441,1705063892479,-500.0,0.00023962,2]
[311331442,1705063892490,-538.07,0.00023962,2]
[311331443,1705063892501,-500.0,0.00023962,2]
[311331444,1705063892511,-654.77,0.00023962,2]
[311331445,1705063892521,-500.0,0.00023962,2]
[311331446,1705063892532,-500.0,0.00023962,2]
[311331447,1705063892542,-500.0,0.00023962,2]
[311331448,1705063892553,-500.0,0.00023962,2]
[311331449,1705063892564,-1000.0,0.00023962,2]
[311331450,1705063892574,-500.0,0.00023962,2]
[311331451,1705063892584,-500.0,0.00023962,2]
[311331452,1705063892594,-500.0,0.00023962,2]
[311331453,1705063892604,-491.99301259,0.00023962,2]
[311331454,1705063892613,-500.0,0.00023962,2]
[311331455,1705063892623,-500.0,0.00023962,2]
[311331456,1705063892634,-500.0,0.00023962,2]
[311331457,1705063892644,-500.0,0.00023962,2]
[311331458,1705063892654,-500.0,0.00023962,2]
[311331459,1705063892664,-500.0,0.00023962,2]
[311331460,1705063892675,-500.0,0.00023962,2]
[311331461,1705063892686,-535.86,0.00023962,2]
[311331462,1705063892696,-500.0,0.00023962,2]
[311331463,1705063892705,-2642.46,0.00023962,2]
[311331464,1705063892715,-500.0,0.00023962,2]
[311331465,1705063892725,-950.9,0.00023962,2]
[311331466,1705063892735,-500.0,0.00023962,2]
[311331467,1705063892746,-500.0,0.00023962,2]
[311331468,1705063892758,-500.0,0.00023962,2]
[311331469,1705063892767,-500.0,0.00023962,2]
[311331470,1705063892777,-536.71,0.00023962,2]
[311331471,1705063892786,-500.0,0.00023962,2]
[311331472,1705063892796,-500.0,0.00023962,2]
[311331473,1705063892806,-500.0,0.00023962,2]
[311331474,1705063892817,-500.0,0.00023962,2]
[311331475,1705063892828,-500.0,0.00023962,2]
[311331476,1705063892838,-500.0,0.00023962,2]
[311331477,1705063892849,-500.0,0.00023962,2]
[311331478,1705063892859,-381.8,0.00023962,2]
[311331479,1705063892869,-693.32,0.00023962,2]
[311331480,1705063892880,-500.0,0.00023962,2]
[311331481,1705063892891,-500.0,0.00023962,2]
[311331482,1705063892901,-500.0,0.00023962,2]
[311331483,1705063892910,-500.0,0.00023962,2]
[311331484,1705063892920,-500.0,0.00023962,2]
[311331485,1705063892930,-568.04,0.00023962,2]
[311331486,1705063892941,-500.0,0.00023962,2]
[311331487,1705063892951,-500.0,0.00023962,2]
[311331488,1705063892961,-500.0,0.00023962,2]
[311331489,1705063892972,-500.0,0.00023962,2]
[311331490,1705063892982,-500.0,0.00023962,2]
[311331491,1705063892993,-500.0,0.00023962,2]
[311331492,1705063893006,-179.60582314,0.00023962,2]
[311331493,1705063893016,-500.0,0.00023962,2]
[311331494,1705063893026,-500.0,0.00023962,2]
[311331495,1705063893037,-500.0,0.00023962,2]
[311331496,1705063893047,-500.0,0.00023962,2]
[311331497,1705063893057,-500.0,0.00023962,2]
[311331498,1705063893067,-500.0,0.00023962,2]
[311331499,1705063893077,-500.0,0.00023962,2]
[311331500,1705063893087,-500.0,0.00023962,2]
[311331501,1705063893097,-500.0,0.00023962,2]
[311331502,1705063893107,-542.18414523,0.00023962,2]
[311331503,1705063893117,-500.0,0.00023962,2]
[311331504,1705063893127,-500.0,0.00023962,2]
[311331505,1705063893137,-500.0,0.00023962,2]
[311331506,1705063893147,-500.0,0.00023962,2]
[311331507,1705063893157,-500.0,0.00023962,2]
[311331508,1705063893167,-500.0,0.00023962,2]
[311331509,1705063893177,-500.0,0.00023962,2]
[311331510,1705063893187,-452.31827856,0.00023962,2]
[311331511,1705063893197,-500.0,0.00023962,2]
[311331512,1705063893207,-603.25,0.00023962,2]
[311331513,1705063893217,-500.0,0.00023962,2]
[311331514,1705063893227,-500.0,0.00023962,2]
[311331515,1705063893236,-500.0,0.00023962,2]
[311331516,1705063893246,-500.0,0.00023962,2]
[311331517,1705063893258,-500.0,0.00023962,2]
[311331518,1705063893335,-500.0,0.00023962,2]
[311331519,1705063893346,-510.85566722,0.00023962,2]
[311331520,1705063893355,-500.0,0.00023962,2]
[311331521,1705063893366,-500.0,0.00023962,2]
[311331522,1705063893376,-500.0,0.00023962,2]
[311331523,1705063893386,-500.0,0.00023962,2]
[311331524,1705063893395,-500.0,0.00023962,2]
[311331525,1705063893405,-500.0,0.00023962,2]
[311331526,1705063893415,-500.0,0.00023962,2]
[311331527,1705063893424,-446.75732847,0.00023962,2]
[311331528,1705063893434,-500.0,0.00023962,2]
[311331529,1705063893443,-500.0,0.00023962,2]
[311331530,1705063893453,-398.98165507,0.00023962,2]
[311331531,1705063893463,-500.0,0.00023962,2]
[311331532,1705063893472,-500.0,0.00023962,2]
[311331533,1705063893482,-500.0,0.00023962,2]
[311331534,1705063893492,-500.0,0.00023962,2]
[311331535,1705063893502,-500.0,0.00023962,2]
[311331536,1705063893511,-819.21,0.00023962,2]
[311331537,1705063893520,-500.0,0.00023962,2]
[311331538,1705063893530,-500.0,0.00023962,2]
[311331539,1705063893539,-500.0,0.00023962,2]
[311331540,1705063893549,-500.0,0.00023962,2]
[311331541,1705063893559,-500.0,0.00023962,2]
[311331542,1705063893568,-500.0,0.00023962,2]
[311331543,1705063893578,-625.04,0.00023962,2]
[311331544,1705063893589,-584.87,0.00023962,2]
[311331545,1705063893598,-500.0,0.00023962,2]
[311331546,1705063893608,-526.38,0.00023962,2]
[311331547,1705063893617,-235.07191364,0.00023962,2]
[311331548,1705063893627,-500.0,0.00023962,2]
[311331549,1705063893636,-550.56,0.00023962,2]
[311331550,1705063893645,-500.0,0.00023962,2]
[311331551,1705063893655,-500.0,0.00023962,2]
[311331552,1705063893665,-648.32891812,0.00023962,2]
[311331553,1705063893675,-500.0,0.00023962,2]
[311331554,1705063893684,-500.0,0.00023962,2]
[311331555,1705063893693,-500.0,0.00023962,2]
[311331556,1705063893703,-500.0,0.00023962,2]
[311331557,1705063893712,-500.0,0.00023962,2]
[311331558,1705063893721,-500.0,0.00023962,2]
[311331559,1705063893730,-624.58,0.00023962,2]
[311331560,1705063893739,-500.0,0.00023962,2]
[311331561,1705063893748,-534.74,0.00023962,2]
[311331562,1705063893758,-489.70015666,0.00023962,2]
[311331563,1705063893768,-500.0,0.00023962,2]
[311331564,1705063893777,-500.0,0.00023962,2]
[311331565,1705063893787,-500.0,0.00023962,2]
[311331566,1705063893796,-745.45,0.00023962,2]
[311331567,1705063893805,-300.93379036,0.00023962,2]
[311331568,1705063893815,-500.0,0.00023962,2]
[311331569,1705063893824,-500.0,0.00023962,2]
[311331570,1705063893833,-500.0,0.00023962,2]
[311331571,1705063893843,-500.0,0.00023962,2]
[311331572,1705063893852,-595.28,0.00023962,2]
[311331573,1705063893862,-500.0,0.00023962,2]
[311331574,1705063893881,-526.79,0.00023962,2]
[311331575,1705063893894,-500.0,0.00023962,2]
[311331576,1705063893903,-500.0,0.00023962,2]
[311331577,1705063893913,-532.8477979,0.00023962,2]
[311331578,1705063893922,-500.0,0.00023962,2]
[311331579,1705063893932,-500.0,0.00023962,2]
[311331580,1705063893942,-335.5419441,0.00023962,2]
[311331581,1705063893951,-500.0,0.00023962,2]
[311331582,1705063893961,-500.0,0.00023962,2]
[311331583,1705063893971,-500.0,0.00023962,2]
[311331584,1705063893981,-627.56,0.00023962,2]
[311331585,1705063893991,-500.0,0.00023962,2]
[311331586,1705063894001,-459.61837506,0.00023962,2]
[311331587,1705063894011,-500.0,0.00023962,2]
[311331588,1705063894020,-500.0,0.00023962,2]
[311331589,1705063894031,-503.09,0.00023962,2]
[311331590,1705063894041,-500.0,0.00023962,2]
[311331591,1705063894051,-500.0,0.00023962,2]
[311331592,1705063894061,-151.75,0.00023962,2]
[311331593,1705063894070,-508.44921753,0.00023962,2]
[311331594,1705063894079,-604.12,0.00023962,2]
[311331595,1705063894089,-500.0,0.00023962,2]
[311331596,1705063894099,-201.99,0.00023962,2]
[311331597,1705063894109,-283.88,0.00023962,2]
[311331598,1705063894118,-500.0,0.00023962,2]
[311331599,1705063894128,-500.0,0.00023962,2]
[311331600,1705063894137,-500.0,0.00023962,2]
[311331601,1705063894147,-500.0,0.00023962,2]
[311331602,1705063894157,-807.85,0.00023962,2]
[311331603,1705063894170,-500.0,0.00023962,2]
[311331604,1705063894180,-500.0,0.00023962,2]
[311331605,1705063894190,-500.0,0.00023962,2]
[311331606,1705063894200,-500.0,0.00023962,2]
[311331607,1705063894210,-500.0,0.00023962,2]
[311331608,1705063894220,-500.0,0.00023962,2]
[311331609,1705063894230,-500.0,0.00023962,2]
[311331610,1705063894241,-500.0,0.00023962,2]
[311331611,1705063894252,-500.0,0.00023962,2]
[311331612,1705063894262,-500.0,0.00023962,2]
[311331613,1705063894271,-500.0,0.00023962,2]
[311331614,1705063894280,-500.0,0.00023962,2]
[311331615,1705063894290,-547.95,0.00023962,2]
[311331616,1705063894300,-579.89,0.00023962,2]
[311331617,1705063894310,-500.0,0.00023962,2]
[311331618,1705063894319,-500.0,0.00023962,2]
[311331619,1705063894329,-500.0,0.00023962,2]
[311331620,1705063894339,-500.0,0.00023962,2]
[311331621,1705063894349,-500.0,0.00023962,2]
[311331622,1705063894359,-548.75,0.00023962,2]
[311331623,1705063894370,-500.0,0.00023962,2]
[311331624,1705063894380,-500.0,0.00023962,2]
[311331625,1705063894389,-1230.23,0.00023962,2]
[311331626,1705063894399,-500.0,0.00023962,2]
[311331627,1705063894410,-500.0,0.00023962,2]
[311331628,1705063894420,-500.0,0.00023962,2]
[311331629,1705063894431,-500.0,0.00023962,2]
[311331630,1705063894441,-1043.35,0.00023962,2]
[311331631,1705063894450,-500.0,0.00023962,2]
[311331632,1705063894460,-537.69,0.00023962,2]
[311331633,1705063894470,-500.0,0.00023962,2]
[311331634,1705063894480,-500.0,0.00023962,2]
[311331635,1705063894490,-500.0,0.00023962,2]
[311331636,1705063894500,-500.0,0.00023962,2]
[311331637,1705063894510,-321.37945492,0.00023962,2]
[311331638,1705063894520,-500.0,0.00023962,2]